bitfinex-derivatives/quotes_BTCF0:USTF0_20250720
["timestamp","ask_amount","ask_price","bid_price","bid_amount"]
[1753037135935,0.14263,118400.0,118390.0,1.80380481]
[1753037136334,0.11921,118400.0,118390.0,1.80380481]
[1753037136542,0.004,118400.0,118390.0,1.80380481]
[1753037136735,0.33364133,118410.0,118390.0,1.63494521]
[1753037136941,0.33364133,118410.0,118400.0,1.1684253]
[1753037137141,0.45551133,118410.0,118400.0,1.2031853]
[1753037137948,0.45651133,118410.0,118400.0,1.2031853]
[1753037138348,0.45851133,118410.0,118400.0,1.2031853]
[1753037139541,0.62734243,118410.0,118400.0,0.2014753]
[1753037139839,0.62734243,118410.0,118400.0,0.7522453]
[1753037141245,0.62734243,118410.0,118400.0,0.1688453]
[1753037141447,0.62734243,118410.0,118400.0,0.7522053]
[1753037142047,0.71176093,118410.0,118400.0,0.7522053]
[1753037142243,0.71279366,118410.0,118400.0,0.7522053]
[1753037142544,1.07385183,118410.0,118400.0,0.7522053]
[1753037143146,1.01313459,118410.0,118400.0,0.7522053]
[1753037143347,1.01313459,118410.0,118400.0,0.1688453]
[1753037143550,1.01313459,118410.0,118400.0,0.7522053]
[1753037147356,0.61012459,118410.0,118400.0,1.0041103]
[1753037148156,0.39908499,118410.0,118400.0,1.0041103]
[1753037148361,0.56791599,118410.0,118400.0,1.0508403]
[1753037148559,0.56817372,118410.0,118400.0,1.0508403]
[1753037148859,0.56817372,118410.0,118400.0,1.4116403]
[1753037149059,0.56817372,118410.0,118400.0,1.0508403]
[1753037149463,0.56843145,118410.0,118400.0,1.0508403]
[1753037149962,0.56843145,118410.0,118400.0,1.4116403]
[1753037150667,0.56868909,118410.0,118400.0,1.4116403]
[1753037151068,0.56894673,118410.0,118400.0,1.4116403]
[1753037151661,0.40011573,118410.0,118400.0,1.0508403]
[1753037151868,0.40011573,118410.0,118400.0,1.0856003]
[1753037152166,0.56894673,118410.0,118400.0,1.0856003]
[1753037153467,0.27724573,118410.0,118400.0,1.4464003]
[1753037153669,0.27824573,118410.0,118400.0,1.6983053]
[1753037153876,0.44707673,118410.0,118400.0,1.3375053]
[1753037154069,0.44507673,118410.0,118400.0,1.3375053]
[1753037154372,0.44507673,118410.0,118400.0,1.6983053]
[1753037154674,0.44507673,118410.0,118400.0,1.3375053]
[1753037154880,0.52220673,118410.0,118400.0,1.0856003]
[1753037155170,0.5481077,118410.0,118400.0,1.0856003]
[1753037156060,0.47890254,118410.0,118400.0,1.4464003]
[1753037156266,0.47890254,118410.0,118400.0,1.0856003]
[1753037156972,0.47916035,118410.0,118400.0,1.0856003]
[1753037157574,0.47916035,118410.0,118400.0,1.4464003]
[1753037157875,0.47941816,118410.0,118400.0,1.4464003]
[1753037158568,0.47941816,118410.0,118400.0,0.8336953]
[1753037158770,0.47967597,118410.0,118400.0,1.5346403]
[1753037159777,0.47993378,118410.0,118400.0,1.5346403]
[1753037160078,0.47993378,118410.0,118400.0,1.1738403]
[1753037160278,0.47993378,118410.0,118400.0,1.5346403]
[1753037160480,0.47993378,118410.0,118400.0,1.7865453]
[1753037160675,0.31110288,118410.0,118400.0,1.7865453]
[1753037160879,0.1431132,118410.0,118400.0,1.7865453]
[1753037161577,0.1899932,118410.0,118400.0,1.7865453]
[1753037162775,0.1431132,118410.0,118400.0,1.7865453]
[1753037163878,0.1899932,118410.0,118400.0,1.7865453]
[1753037164080,0.1431132,118410.0,118400.0,1.7865453]
[1753037165279,0.1899932,118410.0,118400.0,1.7865453]
[1753037166578,0.18651,118410.0,118400.0,1.7865453]
[1753037166774,0.19013572,118410.0,118400.0,1.7865453]
[1753037167182,0.19027824,118410.0,118400.0,1.7865453]
[1753037167684,0.19042076,118410.0,118400.0,1.7865453]
[1753037168084,0.19056328,118410.0,118400.0,1.7865453]
[1753037168378,0.24967328,118410.0,118400.0,1.7865453]
[1753037168583,0.2498158,118410.0,118400.0,1.7865453]
[1753037169087,0.24995832,118410.0,118400.0,1.7865453]
[1753037169480,0.24562,118410.0,118400.0,1.7865453]
[1753037169786,0.25010084,118410.0,118400.0,1.7865453]
[1753037170086,0.25024336,118410.0,118400.0,1.7865453]
[1753037175185,0.20336336,118410.0,118400.0,1.7865453]
[1753037176190,0.0649902,118410.0,118400.0,1.7865453]
[1753037176785,0.1803702,118410.0,118400.0,1.7865453]
[1753037176991,0.18062704,118410.0,118400.0,1.7865453]
[1753037177994,0.18070462,118410.0,118400.0,1.7865453]
[1753037178692,0.06532462,118410.0,118400.0,1.7865453]
[1753037178891,0.06532462,118410.0,118400.0,1.79637403]
[1753037180391,0.00621462,118410.0,118400.0,1.79637403]
[1753037182198,0.188923,118430.0,118420.0,0.3213968]
[1753037182395,0.188923,118430.0,118420.0,1.5174618]
[1753037183000,0.24964024,118430.0,118420.0,1.5174618]
[1753037183188,0.24964024,118430.0,118420.0,1.8782618]
[1753037183594,0.25064024,118430.0,118420.0,1.8782618]
[1753037183790,0.20376024,118430.0,118420.0,1.8782618]
[1753037183995,0.143043,118430.0,118420.0,1.8782618]
[1753037184199,0.189923,118430.0,118420.0,1.8782618]
[1753037184894,0.191923,118430.0,118420.0,1.8782618]
[1753037185297,0.314833,118430.0,118420.0,1.8076018]
[1753037185494,0.314833,118430.0,118420.0,1.4468018]
[1753037185892,0.314833,118430.0,118420.0,1.1145418]
[1753037186494,0.314833,118430.0,118420.0,1.4753418]
[1753037186896,0.4836356,118430.0,118420.0,0.7520968]
[1753037187098,0.4836356,118430.0,118420.0,0.7838068]
[1753037187301,0.4836356,118430.0,118420.0,1.0357118]
[1753037187501,0.54435284,118430.0,118420.0,1.0357118]
[1753037187700,0.4836356,118430.0,118420.0,1.0357118]
[1753037187903,0.54435284,118430.0,118420.0,1.0357118]
[1753037188199,0.4836356,118430.0,118420.0,1.0828618]
[1753037188502,0.4836356,118430.0,118420.0,1.1319818]
[1753037189104,0.4836356,118430.0,118420.0,1.0829418]
[1753037189404,0.4836356,118430.0,118420.0,0.4981018]
[1753037189601,0.314833,118430.0,118420.0,1.0828618]
[1753037189800,0.675633,118430.0,118420.0,1.0828618]
[1753037190001,0.8444356,118430.0,118420.0,1.0828618]
[1753037190197,0.8444356,118430.0,118420.0,0.4981018]
[1753037190502,0.8444356,118430.0,118420.0,1.0829818]
[1753037191296,0.675633,118430.0,118420.0,1.0829818]
[1753037191702,0.8444356,118430.0,118420.0,1.0829818]
[1753037191900,0.4836356,118430.0,118420.0,1.0829818]
[1753037192100,0.4836356,118430.0,118420.0,1.4437818]
[1753037192304,0.4836356,118430.0,118420.0,1.0829818]
[1753037192506,0.4836356,118430.0,118420.0,0.4981018]
[1753037192706,0.4836356,118430.0,118420.0,1.0827818]
[1753037193903,0.4836356,118430.0,118420.0,1.4435818]
[1753037194205,0.4836356,118430.0,118420.0,1.4927018]
[1753037195704,0.314833,118430.0,118420.0,1.4927018]
[1753037196406,0.314833,118430.0,118420.0,1.5212418]
[1753037197008,0.312133,118430.0,118420.0,1.5212418]
[1753037197702,0.4809356,118430.0,118420.0,1.5212418]
[1753037198309,0.8417356,118430.0,118420.0,0.868295]
[1753037198498,0.4809356,118430.0,118420.0,1.0371118]
[1753037199803,0.4809356,118430.0,118420.0,0.7852068]
[1753037200015,0.4809356,118430.0,118420.0,1.0371118]
[1753037200308,0.4809356,118430.0,118420.0,1.0827418]
[1753037200506,0.4809356,118430.0,118420.0,1.0829018]
[1753037200705,0.4809356,118430.0,118420.0,1.0828618]
[1753037200907,0.4809356,118430.0,118420.0,0.4981018]
[1753037201105,0.4809356,118430.0,118420.0,1.0828618]
[1753037202214,0.4809356,118430.0,118420.0,0.4981018]
[1753037202410,0.4809356,118430.0,118420.0,1.0827418]
[1753037203315,0.4809356,118430.0,118420.0,0.4981018]
[1753037203511,0.4809356,118430.0,118420.0,1.0827418]
[1753037204309,0.4809356,118430.0,118420.0,1.1318618]
[1753037205914,0.4809356,118430.0,118420.0,0.5472218]
[1753037206114,0.4809356,118430.0,118420.0,1.1321418]
[1753037206922,0.4809355,118430.0,118420.0,1.1321418]
[1753037207220,0.312133,118430.0,118420.0,1.1606818]
[1753037208518,0.4809355,118430.0,118420.0,1.1606818]
[1753037208819,0.4809355,118430.0,118420.0,0.5757618]
[1753037209119,0.4809355,118430.0,118420.0,1.4405318]
[1753037209120,0.235233,118430.0,118420.0,1.4405318]
[1753037209720,0.4040355,118430.0,118420.0,1.0797318]
[1753037209918,0.4040355,118430.0,118420.0,1.4405318]
[1753037210520,0.235233,118430.0,118420.0,1.4405318]
[1753037210820,0.4040355,118430.0,118420.0,1.4405318]
[1753037211014,0.144673,118430.0,118420.0,1.4405318]
[1753037214016,0.005063,118430.0,118420.0,1.4405318]
[1753037215618,0.07031032,118440.0,118430.0,0.1688025]
[1753037215818,0.16142058,118450.0,118440.0,0.2429983]
[1753037216020,0.16142058,118450.0,118440.0,1.6916883]
[1753037216420,0.14262,118450.0,118440.0,1.71441893]
[1753037216622,0.11842,118450.0,118440.0,1.71441893]
[1753037216823,0.03398338,118460.0,118450.0,0.168774]
[1753037217016,0.15240338,118460.0,118450.0,0.855689]
[1753037217322,0.16116556,118470.0,118460.0,0.2429698]
[1753037217522,0.16116556,118470.0,118460.0,1.0768748]
[1753037218624,0.32991106,118470.0,118460.0,1.0728748]
[1753037219019,0.32991106,118470.0,118460.0,0.8209698]
[1753037219219,0.16116556,118470.0,118460.0,1.0728748]
[1753037219523,0.33091106,118470.0,118460.0,1.0728748]
[1753037219717,0.16216556,118470.0,118460.0,1.0728748]
[1753037219913,0.25380556,118470.0,118460.0,1.0728748]
[1753037221425,0.25380556,118470.0,118460.0,0.8209698]
[1753037221620,0.42255106,118470.0,118460.0,0.5977698]
[1753037221825,0.78335106,118470.0,118460.0,1.0725548]
[1753037222023,0.78335106,118470.0,118460.0,1.0440148]
[1753037222526,0.42255106,118470.0,118460.0,1.0440148]
[1753037222926,0.42255106,118470.0,118460.0,0.297575]
[1753037223123,0.42255106,118470.0,118460.0,0.2144298]
[1753037223328,0.42255106,118470.0,118460.0,1.0536148]
[1753037224227,0.78335106,118470.0,118460.0,1.0536148]
[1753037224527,0.78335106,118470.0,118460.0,0.885055]
[1753037224927,0.78335106,118470.0,118460.0,1.0538148]
[1753037225926,0.61460556,118470.0,118460.0,1.0538148]
[1753037226126,0.61460556,118470.0,118460.0,1.0823548]
[1753037226525,0.25380556,118470.0,118460.0,1.0823548]
[1753037228725,0.16216556,118470.0,118460.0,1.4431548]
[1753037229923,0.33091106,118470.0,118460.0,1.4431548]
[1753037231631,0.13796556,118470.0,118460.0,1.4431548]
[1753037232232,0.16216556,118470.0,118460.0,1.4431548]
[1753037232730,0.33091106,118470.0,118460.0,1.4431548]
[1753037233934,0.16216556,118470.0,118460.0,1.4431548]
[1753037235034,0.33091106,118470.0,118460.0,1.4431548]
[1753037235737,0.16216556,118470.0,118460.0,1.4431548]
[1753037237436,0.13796556,118470.0,118460.0,1.4431548]
[1753037237635,0.13796556,118470.0,118460.0,1.4878548]
[1753037237834,0.30671106,118470.0,118460.0,1.4878548]
[1753037238337,0.33091106,118470.0,118460.0,1.4878548]
[1753037238936,0.20953556,118470.0,118460.0,1.4878548]
[1753037239126,0.37828106,118470.0,118460.0,1.1270548]
[1753037239326,0.37828106,118470.0,118460.0,1.4878548]
[1753037239528,0.20953556,118470.0,118460.0,1.4878548]
[1753037242641,0.16216556,118470.0,118460.0,1.4878548]
[1753037244344,0.20953556,118470.0,118460.0,1.4878548]
[1753037244740,0.13796556,118470.0,118460.0,1.4878548]
[1753037245244,0.13796556,118470.0,118460.0,1.51047372]
[1753037245444,0.16244556,118470.0,118460.0,1.51047372]
[1753037249144,0.16244556,118470.0,118460.0,1.4878548]
[1753037249346,0.21084556,118470.0,118460.0,1.4878548]
[1753037250447,0.01954556,118470.0,118460.0,1.7397598]
[1753037250649,0.01954556,118470.0,118460.0,1.76237872]
[1753037250949,0.002063,118480.0,118470.0,0.54717883]
[1753037251148,0.002063,118480.0,118470.0,1.41178883]
[1753037253047,0.002063,118480.0,118470.0,1.41278883]
[1753037253945,0.061143,118480.0,118470.0,1.41278883]
[1753037254353,0.061143,118480.0,118470.0,1.41378883]
[1753037254956,0.20113995,118490.0,118470.0,1.41378883]
[1753037254957,0.11904,118490.0,118480.0,0.2476412]
[1753037255156,0.11904,118490.0,118480.0,1.7707712]
[1753037255359,0.27111689,118500.0,118490.0,0.320867]
[1753037255559,0.21039965,118500.0,118490.0,0.933572]
[1753037257261,0.25263724,118510.0,118500.0,0.3198528]
[1753037257559,0.19192,118510.0,118500.0,1.5179978]
[1753037257760,0.3606086,118510.0,118500.0,1.2660928]
[1753037257957,0.19192,118510.0,118500.0,1.5179978]
[1753037258558,0.3606086,118510.0,118500.0,1.51839129]
[1753037258764,0.19192,118510.0,118500.0,1.51839129]
[1753037259362,0.19192,118510.0,118500.0,1.51939129]
[1753037260662,0.19192,118510.0,118500.0,1.15859129]
[1753037261062,0.19192,118510.0,118500.0,0.90668629]
[1753037261264,0.19192,118510.0,118500.0,1.15859129]
[1753037261966,0.4390684,118510.0,118500.0,1.15859129]
[1753037262461,0.4837384,118510.0,118500.0,1.15859129]
[1753037262767,0.4837384,118510.0,118500.0,1.51939129]
[1753037262963,0.4837384,118510.0,118500.0,1.15859129]
[1753037263165,0.31505,118510.0,118500.0,1.51939129]
[1753037264763,0.4837384,118510.0,118500.0,1.51939129]
[1753037265169,0.31505,118510.0,118500.0,1.51939129]
[1753037265764,0.4837384,118510.0,118500.0,1.51939129]
[1753037266362,0.31008177,118520.0,118510.0,0.3208384]
[1753037266668,0.31008177,118520.0,118510.0,0.5442034]
[1753037266669,0.55163587,118520.0,118510.0,0.5442034]
[1753037266868,0.91243587,118520.0,118510.0,0.7882884]
[1753037267071,0.91243587,118520.0,118510.0,1.0401934]
[1753037267466,0.55163587,118520.0,118510.0,1.0401934]
[1753037267769,0.91243587,118520.0,118510.0,1.0401934]
[1753037271073,0.91243587,118520.0,118510.0,0.7882884]
[1753037271371,0.91243587,118520.0,118510.0,1.0401934]
[1753037272673,0.55163587,118520.0,118510.0,1.0848934]
[1753037273077,0.55163587,118520.0,118510.0,1.0401934]
[1753037274279,0.91243587,118520.0,118510.0,1.0401934]
[1753037279382,0.91243587,118520.0,118510.0,0.8339584]
[1753037279383,0.97315311,118520.0,118510.0,0.8339584]
[1753037279679,0.97315311,118520.0,118510.0,1.0858634]
[1753037279885,0.97315311,118520.0,118510.0,1.1305634]
[1753037280083,0.61235311,118520.0,118510.0,1.1305634]
[1753037280783,0.55163587,118520.0,118510.0,1.3399114]
[1753037281180,0.61235311,118520.0,118510.0,1.3399114]
[1753037281380,0.61235331,118520.0,118510.0,1.3399114]
[1753037281580,0.61235331,118520.0,118510.0,1.6203564]
[1753037281581,0.25039572,118520.0,118510.0,1.6203564]
[1753037281883,0.25039572,118520.0,118510.0,1.3684514]
[1753037282281,0.25039572,118520.0,118510.0,1.7292514]
[1753037282780,0.23185,118520.0,118510.0,1.74659431]
[1753037284085,0.4005243,118520.0,118510.0,1.74659431]
[1753037284285,0.5201343,118520.0,118510.0,1.38579431]
[1753037284482,0.5201343,118520.0,118510.0,0.51898951]
[1753037284784,0.9000432,118520.0,118510.0,1.26580451]
[1753037285086,0.96076044,118520.0,118510.0,0.81269091]
[1753037285486,0.96076044,118520.0,118510.0,0.22669091]
[1753037285680,1.21266544,118520.0,118510.0,0.81273091]
[1753037286183,1.21266544,118520.0,118510.0,0.22669091]
[1753037286484,1.1519482,118520.0,118510.0,0.22669091]
[1753037286879,0.9000432,118520.0,118510.0,0.81257091]
[1753037287085,0.9000432,118520.0,118510.0,1.06447591]
[1753037287473,0.9000432,118520.0,118510.0,0.81257091]
[1753037288486,0.8601132,118520.0,118510.0,0.81257091]
[1753037288689,0.8601132,118520.0,118510.0,1.06447591]
[1753037289080,1.1120182,118520.0,118510.0,0.209348]
[1753037289287,0.4748528,118500.0,118490.0,0.46829764]
[1753037289483,0.4748528,118500.0,118490.0,1.09972764]
[1753037289682,0.4748528,118500.0,118490.0,1.14442764]
[1753037290590,0.4748528,118500.0,118490.0,1.14430764]
[1753037290884,0.4748528,118500.0,118490.0,1.14630764]
[1753037291484,0.4748528,118500.0,118490.0,1.14830764]
[1753037291684,0.4748528,118500.0,118490.0,0.56266764]
[1753037292088,0.5148028,118500.0,118490.0,1.14822764]
[1753037292292,0.5148028,118500.0,118490.0,1.35757564]
[1753037292688,0.8756028,118500.0,118490.0,0.382065]
[1753037292889,0.8756028,118500.0,118490.0,0.967505]
[1753037293194,0.8756028,118500.0,118490.0,1.21941]
[1753037293493,0.8756028,118500.0,118490.0,1.24992]
[1753037293896,0.8756028,118500.0,118490.0,1.24988]
[1753037294787,0.8756028,118500.0,118490.0,0.495763]
[1753037294984,0.8756028,118500.0,118490.0,1.25032]
[1753037296092,0.8756028,118500.0,118490.0,0.66448]
[1753037296296,0.8756028,118500.0,118490.0,1.25012]
[1753037297599,0.8756028,118500.0,118490.0,1.25016]
[1753037297894,0.8756028,118500.0,118490.0,0.71015]
[1753037298092,0.8756028,118500.0,118490.0,0.213348]
[1753037298288,1.21189954,118500.0,118490.0,0.213348]
[1753037298489,1.38068354,118500.0,118490.0,0.213348]
[1753037298899,1.12877854,118500.0,118490.0,0.213348]
[1753037299195,1.38068354,118500.0,118490.0,0.798788]
[1753037299403,1.96612354,118500.0,118490.0,0.211348]
[1753037299797,1.79733954,118500.0,118490.0,0.211348]
[1753037299999,1.60615178,118500.0,118490.0,0.211348]
[1753037300203,1.85805678,118500.0,118490.0,0.211348]
[1753037300500,1.85805678,118500.0,118490.0,0.209348]
[1753037301098,1.79733954,118500.0,118490.0,0.209348]
[1753037301599,1.54543454,118500.0,118490.0,0.209348]
[1753037301996,0.95999454,118500.0,118490.0,0.209348]
[1753037302303,1.4610428,118500.0,118490.0,0.461253]
[1753037302802,0.8756028,118500.0,118490.0,0.461253]
[1753037303002,0.8756028,118500.0,118490.0,0.209348]
[1753037303405,0.93632004,118500.0,118490.0,0.209348]
[1753037304500,1.18822504,118500.0,118490.0,0.209348]
[1753037304706,1.27261678,118500.0,118490.0,0.209348]
[1753037304908,1.02071178,118500.0,118490.0,0.209348]
[1753037305096,1.27261678,118500.0,118490.0,0.209348]
[1753037305507,1.85765678,118500.0,118490.0,0.209348]
[1753037305908,0.2915113,118480.0,118470.0,0.5415295]
[1753037306112,0.4808113,118480.0,118470.0,1.1265295]
[1753037306514,0.4808113,118480.0,118470.0,1.1264895]
[1753037307017,0.4808113,118480.0,118470.0,1.1284895]
[1753037307316,0.4808113,118480.0,118470.0,1.1304895]
[1753037307516,0.8416113,118480.0,118470.0,0.961745]
[1753037307814,0.4808113,118480.0,118470.0,1.1304905]
[1753037308910,0.4808113,118480.0,118470.0,1.3398385]
[1753037314023,0.49005001,118480.0,118470.0,1.3398385]
[1753037315424,0.54870765,118480.0,118470.0,1.0879335]
[1753037315720,0.54870765,118480.0,118470.0,1.3398385]
[1753037320516,0.54870765,118480.0,118470.0,1.3683785]
[1753037322023,0.90950765,118480.0,118470.0,1.126153]
[1753037322220,0.90950765,118480.0,118470.0,1.2948985]
[1753037322420,0.54870765,118480.0,118470.0,1.126153]
[1753037322612,0.90950765,118480.0,118470.0,1.126153]
[1753037324127,0.90950765,118480.0,118470.0,0.541433]
[1753037324424,0.90950765,118480.0,118470.0,1.125953]
[1753037324722,0.54870765,118480.0,118470.0,1.3393985]
[1753037325324,0.54870765,118480.0,118470.0,1.7287385]
[1753037325524,0.54870765,118480.0,118470.0,1.3679385]
[1753037325723,0.54870765,118480.0,118470.0,1.7287385]
[1753037325925,0.54870765,118480.0,118470.0,1.3678585]
[1753037328022,0.54870765,118480.0,118470.0,1.7286585]
[1753037329823,0.60942489,118480.0,118470.0,1.7286585]
[1753037330719,0.60942489,118480.0,118470.0,1.1442185]
[1753037330927,0.60942489,118480.0,118470.0,1.3673785]
[1753037331432,0.54870765,118480.0,118470.0,1.3673785]
[1753037331926,0.54870765,118480.0,118470.0,1.7281785]
[1753037332632,0.54870765,118480.0,118470.0,1.3673785]
[1753037334336,0.54870765,118480.0,118470.0,1.4762735]
[1753037334631,0.54870765,118480.0,118470.0,1.7281785]
[1753037334831,0.54870765,118480.0,118470.0,1.3673785]
[1753037335839,0.54870765,118480.0,118470.0,0.7834185]
[1753037336028,0.54870765,118480.0,118470.0,1.3674185]
[1753037336335,0.54870765,118480.0,118470.0,1.39003742]
[1753037339136,0.54870765,118480.0,118470.0,1.75083742]
[1753037339341,0.54870765,118480.0,118470.0,1.39003742]
[1753037339734,0.54870765,118480.0,118470.0,1.75083742]
[1753037340541,0.25719635,118480.0,118470.0,1.75083742]
[1753037340735,0.22738884,118480.0,118470.0,1.75083742]
[1753037340940,0.41669884,118480.0,118470.0,1.39003742]
[1753037341240,0.54427884,118480.0,118470.0,1.39003742]
[1753037341539,0.54427884,118480.0,118470.0,0.80603742]
[1753037341540,0.90507884,118480.0,118470.0,0.80603742]
[1753037341729,0.90507884,118480.0,118470.0,1.13801242]
[1753037341926,0.54427884,118480.0,118470.0,1.75071742]
[1753037342235,0.54427884,118480.0,118470.0,1.7280985]
[1753037342442,0.37554764,118480.0,118470.0,1.7280985]
[1753037342734,0.25709251,118480.0,118470.0,1.7280985]
[1753037342938,0.25709251,118480.0,118470.0,1.3672985]
[1753037343637,0.25709251,118480.0,118470.0,1.7280985]
[1753037343831,0.42582371,118480.0,118470.0,1.7280985]
[1753037344026,0.42582371,118480.0,118470.0,1.3672985]
[1753037344440,0.55340371,118480.0,118470.0,1.3672985]
[1753037344636,0.55340371,118480.0,118470.0,1.7280985]
[1753037345246,0.38467251,118480.0,118470.0,1.7280985]
[1753037345539,0.8031713,118500.0,118490.0,0.02333]
[1753037345746,0.7609947,118500.0,118490.0,1.042492]
[1753037345940,0.7942847,118500.0,118490.0,1.042492]
[1753037346237,0.54037724,118500.0,118490.0,1.042492]
[1753037346434,0.17957724,118500.0,118490.0,1.403292]
[1753037346632,0.06071724,118500.0,118490.0,1.403292]
[1753037347239,0.38604802,118510.0,118500.0,0.1920328]
[1753037347428,0.46211292,118510.0,118500.0,0.4585178]
[1753037347829,0.57728292,118510.0,118500.0,0.4585178]
[1753037348041,0.58969292,118510.0,118500.0,0.4585178]
[1753037348338,0.51362802,118510.0,118500.0,0.4585178]
[1753037348640,0.57437353,118510.0,118500.0,0.4585178]
[1753037349332,0.34493852,118510.0,118500.0,0.4585178]
[1753037349646,0.34493852,118510.0,118500.0,0.4595178]
[1753037349840,0.34493852,118510.0,118500.0,0.4605178]
[1753037350244,0.34493852,118510.0,118500.0,0.6698658]
[1753037351140,0.32623522,118510.0,118500.0,0.6698658]
[1753037352040,0.49492372,118510.0,118500.0,0.6698658]
[1753037352241,0.32623522,118510.0,118500.0,0.6698658]
[1753037352441,0.32623522,118510.0,118500.0,0.68703032]
[1753037353644,0.49492372,118510.0,118500.0,0.68703032]
[1753037354340,0.32623522,118510.0,118500.0,0.68703032]
[1753037354733,0.49492372,118510.0,118500.0,0.68703032]
[1753037355145,0.32623522,118510.0,118500.0,0.68703032]
[1753037355347,0.49492372,118510.0,118500.0,0.68703032]
[1753037356842,0.32623522,118510.0,118500.0,1.04783032]
[1753037357146,0.18931,118510.0,118500.0,1.04783032]
[1753037358143,0.3579985,118510.0,118500.0,1.04783032]
[1753037358344,0.18931,118510.0,118500.0,1.04783032]
[1753037362450,0.2552342,118510.0,118500.0,1.04783032]
[1753037363251,0.4239227,118510.0,118500.0,0.68703032]
[1753037363751,0.4731685,118510.0,118500.0,1.04783032]
[1753037363946,0.18931,118510.0,118500.0,0.68703032]
[1753037364346,0.18931,118510.0,118500.0,1.04783032]
[1753037365552,0.42426482,118510.0,118500.0,1.04783032]
[1753037365747,0.25557632,118510.0,118500.0,1.04783032]
[1753037371052,0.18793,118520.0,118510.0,0.2065985]
[1753037371257,0.16367,118520.0,118510.0,1.4054635]
[1753037372054,0.16367,118520.0,118510.0,1.4074635]
[1753037372958,0.16367,118520.0,118510.0,1.4094635]
[1753037373159,0.18793,118520.0,118510.0,1.4094635]
[1753037375253,0.18793,118520.0,118510.0,1.6188115]
[1753037380860,0.18793,118520.0,118510.0,1.0061065]
[1753037381060,0.18793,118520.0,118510.0,1.2580115]
[1753037381263,0.18793,118520.0,118510.0,1.6188115]
[1753037382558,0.18793,118520.0,118510.0,1.3669065]
[1753037382766,0.8418042,118520.0,118510.0,1.0026465]
[1753037383161,0.8418042,118520.0,118510.0,1.2545515]
[1753037385058,0.54873,118520.0,118510.0,1.28805044]
[1753037385259,0.54873,118520.0,118510.0,1.03614544]
[1753037385458,0.67313,118520.0,118510.0,1.28805044]
[1753037385656,0.31233,118520.0,118510.0,1.28805044]
[1753037385856,0.31233,118520.0,118510.0,1.64885044]
[1753037386163,0.31233,118520.0,118510.0,1.39694544]
[1753037386364,0.31233,118520.0,118510.0,1.64885044]
[1753037387260,0.31233,118520.0,118510.0,1.28805044]
[1753037387866,0.4810042,118520.0,118510.0,1.28805044]
[1753037388466,0.31233,118520.0,118510.0,1.64885044]
[1753037389769,0.4810042,118520.0,118510.0,1.64885044]
[1753037391069,0.18793,118520.0,118510.0,1.64885044]
[1753037393361,0.3566042,118520.0,118510.0,1.64885044]
[1753037393561,0.4685442,118520.0,118510.0,1.64885044]
[1753037394262,0.4685442,118520.0,118510.0,1.28805044]
[1753037394567,0.4685442,118520.0,118510.0,1.64885044]
[1753037394867,0.4685442,118520.0,118510.0,1.28805044]
[1753037395071,0.4810042,118520.0,118510.0,1.28805044]
[1753037395758,0.4810042,118520.0,118510.0,0.69077044]
[1753037395962,0.4810042,118520.0,118510.0,1.28785044]
[1753037396564,0.4810042,118520.0,118510.0,0.52208194]
[1753037396769,0.8418042,118520.0,118510.0,1.02128544]
[1753037397274,0.8418042,118520.0,118510.0,1.27319044]
[1753037398066,0.8418042,118520.0,118510.0,0.42428544]
[1753037398258,1.0937092,118520.0,118510.0,0.82938694]
[1753037398459,0.8418042,118520.0,118510.0,0.82938694]
[1753037398664,0.8418042,118520.0,118510.0,0.99807544]
[1753037399365,0.8418042,118520.0,118510.0,0.99819544]
[1753037399672,0.8418042,118520.0,118510.0,0.99815544]
[1753037399868,1.2605562,118520.0,118510.0,0.213348]
[1753037400059,0.3194827,118500.0,118490.0,0.04597624]
[1753037400264,0.8402927,118500.0,118490.0,1.0451919]
[1753037401666,0.8402927,118500.0,118490.0,0.878475]
[1753037402572,0.8402927,118500.0,118490.0,1.0481919]
[1753037402771,0.8402927,118500.0,118490.0,0.879475]
[1753037403070,0.8402927,118500.0,118490.0,1.088823]
[1753037403470,0.8402927,118500.0,118490.0,1.2575397]
[1753037404373,0.8402927,118500.0,118490.0,0.836918]
[1753037404561,0.8402927,118500.0,118490.0,1.088823]
[1753037405374,0.8402927,118500.0,118490.0,1.2575397]
[1753037406472,0.8402927,118500.0,118490.0,1.0056347]
[1753037406772,0.8402927,118500.0,118490.0,1.2575397]
[1753037408073,0.8402927,118500.0,118490.0,1.0056347]
[1753037408374,0.8402927,118500.0,118490.0,1.2575397]
[1753037409572,0.8402927,118500.0,118490.0,1.0056347]
[1753037409767,0.8402927,118500.0,118490.0,1.2575397]
[1753037411381,0.8402927,118500.0,118490.0,0.836918]
[1753037411571,0.8402927,118500.0,118490.0,1.088823]
[1753037411772,0.8402927,118500.0,118490.0,1.2575399]
[1753037412776,0.8402927,118500.0,118490.0,1.2721199]
[1753037415777,0.4794927,118500.0,118490.0,1.2721199]
[1753037421484,0.54690529,118500.0,118490.0,1.2721199]
[1753037423084,0.6076508,118500.0,118490.0,1.2721199]
[1753037423285,0.54690529,118500.0,118490.0,1.2721199]
[1753037426086,0.42092529,118500.0,118490.0,1.2721199]
[1753037426289,0.42092529,118500.0,118490.0,1.6329199]
[1753037426788,0.54658519,118500.0,118490.0,1.6329199]
[1753037430103,0.54658519,118500.0,118490.0,1.3810149]
[1753037430303,0.54658519,118500.0,118490.0,1.6329199]
[1753037434505,0.54658519,118500.0,118490.0,1.6277199]
[1753037435907,0.54658519,118500.0,118490.0,1.2669199]
[1753037436096,0.37788259,118500.0,118490.0,1.2669199]
[1753037436493,0.16001,118500.0,118490.0,1.6277199]
[1753037436803,0.1126,118500.0,118490.0,1.6277199]
[1753037437200,0.1126,118500.0,118490.0,1.94123285]
[1753037437396,0.1126,118500.0,118490.0,1.7527602]
[1753037439202,0.1126,118500.0,118490.0,1.62713198]
[1753037439705,0.49219567,118510.0,118500.0,0.1920327]
[1753037440004,0.49219567,118510.0,118500.0,0.81872978]
[1753037440205,0.21299175,118510.0,118500.0,0.81872978]
[1753037440602,0.38168015,118510.0,118500.0,0.81872978]
[1753037442504,0.38168015,118510.0,118500.0,1.02807778]
[1753037442905,0.3645784,118510.0,118500.0,1.02807778]
[1753037443105,0.3645784,118510.0,118500.0,1.03007778]
[1753037443308,0.3645784,118510.0,118500.0,1.03207778]
[1753037443902,0.19589,118510.0,118500.0,1.03207778]
[1753037445408,0.17099,118510.0,118500.0,1.03207778]
[1753037446910,0.19589,118510.0,118500.0,1.03207778]
[1753037449415,0.17099,118510.0,118500.0,1.03207778]
[1753037450310,0.19589,118510.0,118500.0,1.03207778]
[1753037453313,0.19589,118510.0,118500.0,1.05472402]
[1753037458119,0.4908784,118510.0,118500.0,1.63458402]
[1753037458618,0.4908784,118510.0,118500.0,1.61193778]
[1753037459215,0.4908784,118510.0,118500.0,1.7376309]
[1753037460117,0.32219,118510.0,118500.0,1.7522109]
[1753037461620,0.32219,118510.0,118500.0,1.940716]